[Event "Titled Tuesday Blitz April 4 Early 2023"]
[White "Ai, Evan"]
[Black "rionelG"]
[WhiteFideId "2094770"]
[WhiteElo "1963"]
[BlackElo "2197"]
[Result "1-0"]
[Round "07"]
[TimeControl "180+2"]
[Date "2023.04.04"]
[WhiteClock "0:00:13"]
[BlackClock "0:00:02"]

1. e4 {[%clk 0:03:00]}  c5 {[%clk 0:02:59]} 2. Nf3 {[%clk 0:02:58]}  d6 {[%clk 0:03:00]} 3. d4 {[%clk 0:02:58]}  cxd4 {[%clk 0:03:01]} 4. Nxd4 {[%clk 0:02:59]}  Nf6 {[%clk 0:03:01]} 5. Nc3 {[%clk 0:02:59]}  a6 {[%clk 0:03:02]} 6. f3 {[%clk 0:02:55]}  e5 {[%clk 0:03:00]} 7. Nb3 {[%clk 0:02:51]}  Be7 {[%clk 0:03:01]} 8. Be3 {[%clk 0:02:51]}  Be6 {[%clk 0:03:01]} 9. Qd2 {[%clk 0:02:51]}  O-O {[%clk 0:03:02]} 10. O-O-O {[%clk 0:02:50]}  a5 {[%clk 0:03:01]} 11. Bb5 {[%clk 0:02:48]}  Nc6 {[%clk 0:02:41]} 12. Na4 {[%clk 0:02:31]}  Ne8 {[%clk 0:02:32]} 13. Bb6 {[%clk 0:02:15]}  Qb8 {[%clk 0:02:31]} 14. Bxc6 {[%clk 0:02:09]}  bxc6 {[%clk 0:02:28]} 15. Nxa5 {[%clk 0:02:08]}  Bd7 {[%clk 0:02:10]} 16. Be3 {[%clk 0:01:31]}  c5 {[%clk 0:01:31]} 17. Nxc5 {[%clk 0:01:24]}  dxc5 {[%clk 0:00:59]} 18. Qxd7 {[%clk 0:01:18]}  Rxa5 {[%clk 0:00:59]} 19. Qxe7 {[%clk 0:01:18]}  Rxa2 {[%clk 0:00:59]} 20. b3 {[%clk 0:01:04]}  Nf6 {[%clk 0:00:46]} 21. Bxc5 {[%clk 0:00:57]}  Rc8 {[%clk 0:00:44]} 22. b4 {[%clk 0:00:16]}  h6 {[%clk 0:00:31]} 23. Rhe1 {[%clk 0:00:15]}  Qa8 {[%clk 0:00:27]} 24. Re3 {[%clk 0:00:14]}  Ra1+ {[%clk 0:00:19]} 25. Kd2 {[%clk 0:00:14]}  Rd8+ {[%clk 0:00:17]} 26. Rd3 {[%clk 0:00:13]}  Rxd3+ {[%clk 0:00:17]} 27. cxd3 {[%clk 0:00:14]}  Qa2+ {[%clk 0:00:17]} 28. Ke1 {[%clk 0:00:14]}  Qxg2 {[%clk 0:00:10]} 29. Rxa1 {[%clk 0:00:13]}  Qh1+ {[%clk 0:00:09]} 30. Kd2 {[%clk 0:00:13]}  Qxa1 {[%clk 0:00:10]} 31. Qf8+ {[%clk 0:00:12]}  Kh7 {[%clk 0:00:10]} 32. Qxf7 {[%clk 0:00:13]}  Qb2+ {[%clk 0:00:10]} 33. Ke3 {[%clk 0:00:13]}  Qxh2 {[%clk 0:00:08]} 34. Qe6 {[%clk 0:00:12]}  Qg1+ {[%clk 0:00:07]} 35. Ke2 {[%clk 0:00:11]}  Qg2+ {[%clk 0:00:07]} 36. Ke3 {[%clk 0:00:11]}  Qg1+ {[%clk 0:00:05]} 37. Kd2 {[%clk 0:00:11]}  Qg2+ {[%clk 0:00:05]} 38. Kc3 {[%clk 0:00:12]}  Qxf3 {[%clk 0:00:05]} 39. Qxe5 {[%clk 0:00:12]}  h5 {[%clk 0:00:05]} 40. Qf5+ {[%clk 0:00:12]}  Qxf5 {[%clk 0:00:04]} 41. exf5 {[%clk 0:00:13]}  h4 {[%clk 0:00:05]} 42. Bd6 {[%clk 0:00:14]}  Nd5+ {[%clk 0:00:02]} 43. Kd4 {[%clk 0:00:13]} 1-0


[Site "https://www.chess.com"]

[Event "Titled Tuesday Blitz April 4 Early 2023"]
[White "Zaichenko, Daria"]
[Black "dDobravcan"]
[WhiteFideId "4197453"]
[WhiteElo "2039"]
[BlackElo "2145"]
[Result "1-0"]
[Round "07"]
[TimeControl "180+2"]
[Date "2023.04.04"]
[WhiteClock "0:00:28"]
[BlackClock "0:00:36"]

1. e4 {[%clk 0:03:00]}  Nf6 {[%clk 0:02:58]} 2. e5 {[%clk 0:02:59]}  Nd5 {[%clk 0:02:57]} 3. d4 {[%clk 0:03:00]}  d6 {[%clk 0:02:56]} 4. Nf3 {[%clk 0:03:00]}  Bg4 {[%clk 0:02:54]} 5. c4 {[%clk 0:03:00]}  Nb6 {[%clk 0:02:52]} 6. Be2 {[%clk 0:02:59]}  c6 {[%clk 0:02:49]} 7. Nc3 {[%clk 0:02:58]}  Bxf3 {[%clk 0:02:47]} 8. gxf3 {[%clk 0:02:56]}  dxe5 {[%clk 0:02:38]} 9. dxe5 {[%clk 0:02:55]}  Qxd1+ {[%clk 0:02:26]} 10. Nxd1 {[%clk 0:02:55]}  e6 {[%clk 0:02:24]} 11. Be3 {[%clk 0:02:52]}  N8d7 {[%clk 0:02:21]} 12. Nc3 {[%clk 0:02:52]}  Nxe5 {[%clk 0:02:19]} 13. b3 {[%clk 0:02:46]}  Bb4 {[%clk 0:02:16]} 14. Kd2 {[%clk 0:02:47]}  O-O-O+ {[%clk 0:02:12]} 15. Kc2 {[%clk 0:02:47]}  Rd7 {[%clk 0:02:01]} 16. a3 {[%clk 0:02:47]}  Be7 {[%clk 0:01:47]} 17. a4 {[%clk 0:02:44]}  Rhd8 {[%clk 0:01:42]} 18. a5 {[%clk 0:02:35]}  Na8 {[%clk 0:01:40]} 19. f4 {[%clk 0:01:47]}  Ng6 {[%clk 0:01:38]} 20. Rhb1 {[%clk 0:01:36]}  Bd6 {[%clk 0:01:25]} 21. Bxa7 {[%clk 0:01:13]}  Bxf4 {[%clk 0:01:24]} 22. Rd1 {[%clk 0:01:14]}  Rxd1 {[%clk 0:01:18]} 23. Rxd1 {[%clk 0:01:14]}  Rxd1 {[%clk 0:01:18]} 24. Bxd1 {[%clk 0:01:13]}  Bxh2 {[%clk 0:01:15]} 25. Ne4 {[%clk 0:01:10]}  f6 {[%clk 0:01:08]} 26. b4 {[%clk 0:01:10]}  h6 {[%clk 0:01:04]} 27. Nc5 {[%clk 0:01:08]}  Ne5 {[%clk 0:00:56]} 28. Nxe6 {[%clk 0:01:04]}  Nxc4 {[%clk 0:00:53]} 29. Bg4 {[%clk 0:01:04]}  Ne5 {[%clk 0:00:50]} 30. Bh3 {[%clk 0:01:04]}  Kd7 {[%clk 0:00:45]} 31. Nxg7+ {[%clk 0:01:04]}  Kd6 {[%clk 0:00:45]} 32. Bc5+ {[%clk 0:00:56]}  Kd5 {[%clk 0:00:45]} 33. Bf5 {[%clk 0:00:39]}  Nc7 {[%clk 0:00:42]} 34. Nh5 {[%clk 0:00:28]}  Nb5 {[%clk 0:00:41]} 35. Nxf6+ {[%clk 0:00:28]}  Kc4 {[%clk 0:00:36]} 36. Be6# {[%clk 0:00:28]} 1-0


[Site "https://www.chess.com"]

[Event "Titled Tuesday Blitz April 4 Early 2023"]
[White "Levine, David"]
[Black "Simonovic, Miroslav"]
[WhiteFideId "2011611"]
[BlackFideId "919152"]
[WhiteElo "2089"]
[BlackElo "2042"]
[Result "1-0"]
[Round "07"]
[TimeControl "180+2"]
[Date "2023.04.04"]
[WhiteClock "0:00:49"]
[BlackClock "0:00:01"]

1. d4 {[%clk 0:03:00]}  Nf6 {[%clk 0:02:52]} 2. c4 {[%clk 0:02:59]}  c5 {[%clk 0:02:51]} 3. d5 {[%clk 0:02:59]}  b5 {[%clk 0:02:52]} 4. Qc2 {[%clk 0:02:58]}  bxc4 {[%clk 0:02:52]} 5. e4 {[%clk 0:02:58]}  d6 {[%clk 0:02:53]} 6. Na3 {[%clk 0:02:55]}  g6 {[%clk 0:02:52]} 7. Nxc4 {[%clk 0:02:54]}  Nbd7 {[%clk 0:02:53]} 8. Nf3 {[%clk 0:02:52]}  Bg7 {[%clk 0:02:52]} 9. Be2 {[%clk 0:02:46]}  O-O {[%clk 0:02:51]} 10. O-O {[%clk 0:02:46]}  Ba6 {[%clk 0:02:50]} 11. Rb1 {[%clk 0:02:44]}  Bxc4 {[%clk 0:02:49]} 12. Bxc4 {[%clk 0:02:41]}  Ng4 {[%clk 0:02:49]} 13. b3 {[%clk 0:02:40]}  Nge5 {[%clk 0:02:36]} 14. Nxe5 {[%clk 0:02:39]}  Nxe5 {[%clk 0:02:37]} 15. Bb2 {[%clk 0:02:38]}  Qa5 {[%clk 0:02:36]} 16. Bc3 {[%clk 0:02:29]}  Nf3+ {[%clk 0:02:09]} 17. gxf3 {[%clk 0:02:25]}  Bxc3 {[%clk 0:02:09]} 18. f4 {[%clk 0:02:19]}  Bd4 {[%clk 0:01:45]} 19. Rbd1 {[%clk 0:02:15]}  Kg7 {[%clk 0:01:44]} 20. Rd3 {[%clk 0:02:14]}  f5 {[%clk 0:01:39]} 21. Qe2 {[%clk 0:01:55]}  fxe4 {[%clk 0:01:31]} 22. Qxe4 {[%clk 0:01:54]}  Qc7 {[%clk 0:01:22]} 23. Re1 {[%clk 0:01:50]}  Rf7 {[%clk 0:01:12]} 24. Rg3 {[%clk 0:01:23]}  Raf8 {[%clk 0:01:11]} 25. Rg4 {[%clk 0:01:17]}  Qd7 {[%clk 0:01:08]} 26. h3 {[%clk 0:01:15]}  Kh8 {[%clk 0:00:37]} 27. Kg2 {[%clk 0:01:14]}  a5 {[%clk 0:00:19]} 28. Re2 {[%clk 0:01:14]}  Bf6 {[%clk 0:00:14]} 29. a4 {[%clk 0:01:09]}  Qf5 {[%clk 0:00:13]} 30. Bb5 {[%clk 0:01:04]}  h5 {[%clk 0:00:08]} 31. Rxg6 {[%clk 0:00:56]}  Qxe4+ {[%clk 0:00:05]} 32. Rxe4 {[%clk 0:00:56]}  Kh7 {[%clk 0:00:04]} 33. f5 {[%clk 0:00:52]}  Bg7 {[%clk 0:00:01]} 34. Rg5 {[%clk 0:00:49]}  Kh6 {[%clk 0:00:01]} 35. h4 {[%clk 0:00:49]} 1-0


[Site "https://www.chess.com"]

[Event "Titled Tuesday Blitz April 4 Early 2023"]
[White "EdmundPlayer"]
[Black "Lohani, Sujana"]
[BlackFideId "12311987"]
[WhiteElo "2232"]
[BlackElo "1718"]
[Result "1-0"]
[Round "07"]
[TimeControl "180+2"]
[Date "2023.04.04"]
[WhiteClock "0:00:06"]
[BlackClock "0:00:03"]

1. e4 {[%clk 0:03:00]}  g6 {[%clk 0:02:59]} 2. d4 {[%clk 0:02:58]}  Bg7 {[%clk 0:03:00]} 3. Nc3 {[%clk 0:02:59]}  d6 {[%clk 0:02:57]} 4. Nf3 {[%clk 0:02:59]}  Nf6 {[%clk 0:02:58]} 5. Be2 {[%clk 0:02:59]}  O-O {[%clk 0:02:58]} 6. O-O {[%clk 0:02:59]}  c5 {[%clk 0:02:57]} 7. dxc5 {[%clk 0:02:59]}  dxc5 {[%clk 0:02:56]} 8. Be3 {[%clk 0:02:56]}  b6 {[%clk 0:02:55]} 9. Qxd8 {[%clk 0:02:49]}  Rxd8 {[%clk 0:02:54]} 10. Rad1 {[%clk 0:02:49]}  Nc6 {[%clk 0:02:52]} 11. Rxd8+ {[%clk 0:02:47]}  Nxd8 {[%clk 0:02:51]} 12. Rd1 {[%clk 0:02:42]}  Bb7 {[%clk 0:02:50]} 13. Nd2 {[%clk 0:02:38]}  Nc6 {[%clk 0:02:48]} 14. Nb3 {[%clk 0:02:17]}  e5 {[%clk 0:02:36]} 15. f3 {[%clk 0:02:14]}  Nd4 {[%clk 0:02:35]} 16. Bd3 {[%clk 0:02:09]}  Rc8 {[%clk 0:02:29]} 17. Nd2 {[%clk 0:01:55]}  a6 {[%clk 0:02:03]} 18. Ncb1 {[%clk 0:01:26]}  b5 {[%clk 0:02:01]} 19. c3 {[%clk 0:01:24]}  Ne6 {[%clk 0:01:59]} 20. Be2 {[%clk 0:01:22]}  c4 {[%clk 0:01:50]} 21. Na3 {[%clk 0:01:20]}  Nd7 {[%clk 0:01:37]} 22. Nc2 {[%clk 0:01:18]}  Ndc5 {[%clk 0:01:36]} 23. Nb4 {[%clk 0:01:17]}  Rd8 {[%clk 0:01:34]} 24. Nf1 {[%clk 0:01:14]}  Rxd1 {[%clk 0:01:17]} 25. Bxd1 {[%clk 0:01:15]}  a5 {[%clk 0:01:16]} 26. Nd5 {[%clk 0:01:15]}  Nd3 {[%clk 0:01:13]} 27. b3 {[%clk 0:01:06]}  Bxd5 {[%clk 0:00:57]} 28. exd5 {[%clk 0:01:06]}  Nc7 {[%clk 0:00:57]} 29. d6 {[%clk 0:01:06]}  Nd5 {[%clk 0:00:56]} 30. Bg5 {[%clk 0:00:55]}  Bf6 {[%clk 0:00:37]} 31. Bxf6 {[%clk 0:00:31]}  Nxf6 {[%clk 0:00:35]} 32. Nd2 {[%clk 0:00:30]}  cxb3 {[%clk 0:00:34]} 33. axb3 {[%clk 0:00:27]}  Kf8 {[%clk 0:00:33]} 34. c4 {[%clk 0:00:25]}  bxc4 {[%clk 0:00:28]} 35. bxc4 {[%clk 0:00:24]}  Ke8 {[%clk 0:00:28]} 36. Ba4+ {[%clk 0:00:24]}  Kd8 {[%clk 0:00:28]} 37. Nb3 {[%clk 0:00:24]}  Nb2 {[%clk 0:00:25]} 38. Bb5 {[%clk 0:00:21]}  a4 {[%clk 0:00:25]} 39. Nc1 {[%clk 0:00:13]}  a3 {[%clk 0:00:16]} 40. c5 {[%clk 0:00:12]}  Ne8 {[%clk 0:00:11]} 41. Kf2 {[%clk 0:00:08]}  f6 {[%clk 0:00:05]} 42. Ke2 {[%clk 0:00:06]}  Nxd6 {[%clk 0:00:03]} 43. cxd6 {[%clk 0:00:06]} 1-0


[Site "https://www.chess.com"]

[Event "Titled Tuesday Blitz April 4 Early 2023"]
[White "Tuleyeva-Aketayeva, Dana"]
[Black "Hrabinska, Myroslava"]
[WhiteFideId "13701932"]
[BlackFideId "14109190"]
[WhiteElo "2030"]
[BlackElo "2039"]
[Result "0-1"]
[Round "07"]
[TimeControl "180+2"]
[Date "2023.04.04"]
[WhiteClock "0:00:02"]
[BlackClock "0:00:10"]

1. d4 {[%clk 0:03:00]}  Nf6 {[%clk 0:02:57]} 2. Nf3 {[%clk 0:03:01]}  d5 {[%clk 0:02:54]} 3. g3 {[%clk 0:03:02]}  g6 {[%clk 0:02:51]} 4. Bg2 {[%clk 0:03:02]}  Bg7 {[%clk 0:02:52]} 5. O-O {[%clk 0:03:03]}  O-O {[%clk 0:02:52]} 6. c4 {[%clk 0:02:59]}  c6 {[%clk 0:02:48]} 7. Nc3 {[%clk 0:02:58]}  e6 {[%clk 0:02:46]} 8. Nd2 {[%clk 0:02:57]}  b6 {[%clk 0:02:44]} 9. e4 {[%clk 0:02:57]}  Bb7 {[%clk 0:02:40]} 10. cxd5 {[%clk 0:02:22]}  cxd5 {[%clk 0:02:37]} 11. exd5 {[%clk 0:02:23]}  Nxd5 {[%clk 0:02:33]} 12. Nb3 {[%clk 0:02:19]}  Nxc3 {[%clk 0:02:29]} 13. bxc3 {[%clk 0:02:20]}  Bxg2 {[%clk 0:02:29]} 14. Kxg2 {[%clk 0:02:21]}  Nd7 {[%clk 0:02:12]} 15. Be3 {[%clk 0:02:08]}  Rc8 {[%clk 0:02:12]} 16. Rc1 {[%clk 0:02:08]}  b5 {[%clk 0:02:04]} 17. Qe2 {[%clk 0:01:56]}  a6 {[%clk 0:01:55]} 18. Rfd1 {[%clk 0:01:53]}  Nb6 {[%clk 0:01:54]} 19. Nc5 {[%clk 0:01:48]}  Ra8 {[%clk 0:01:06]} 20. Qf3 {[%clk 0:01:19]}  Qd5 {[%clk 0:01:00]} 21. Ra1 {[%clk 0:00:53]}  a5 {[%clk 0:00:37]} 22. a4 {[%clk 0:00:47]}  b4 {[%clk 0:00:36]} 23. cxb4 {[%clk 0:00:45]}  axb4 {[%clk 0:00:36]} 24. Qxd5 {[%clk 0:00:42]}  exd5 {[%clk 0:00:27]} 25. Rdb1 {[%clk 0:00:41]}  Nc4 {[%clk 0:00:21]} 26. Rxb4 {[%clk 0:00:32]}  Rfc8 {[%clk 0:00:21]} 27. Rab1 {[%clk 0:00:25]}  Bf8 {[%clk 0:00:20]} 28. Ra1 {[%clk 0:00:09]}  Nxe3+ {[%clk 0:00:19]} 29. fxe3 {[%clk 0:00:09]}  Bxc5 {[%clk 0:00:19]} 30. dxc5 {[%clk 0:00:10]}  Rxc5 {[%clk 0:00:19]} 31. Rd1 {[%clk 0:00:09]}  Rca5 {[%clk 0:00:19]} 32. Rbd4 {[%clk 0:00:07]}  Rxa4 {[%clk 0:00:18]} 33. Rxa4 {[%clk 0:00:08]}  Rxa4 {[%clk 0:00:16]} 34. Rxd5 {[%clk 0:00:08]}  Kg7 {[%clk 0:00:17]} 35. Re5 {[%clk 0:00:07]}  f5 {[%clk 0:00:16]} 36. Re7+ {[%clk 0:00:07]}  Kh6 {[%clk 0:00:15]} 37. h4 {[%clk 0:00:07]}  Rb4 {[%clk 0:00:11]} 38. Kf3 {[%clk 0:00:07]}  g5 {[%clk 0:00:10]} 39. hxg5+ {[%clk 0:00:07]}  Kg6 {[%clk 0:00:11]} 40. Rd7 {[%clk 0:00:05]}  Re4 {[%clk 0:00:10]} 41. Rc7 {[%clk 0:00:04]}  Rg4 {[%clk 0:00:10]} 42. Rc6+ {[%clk 0:00:03]}  Kxg5 {[%clk 0:00:10]} 43. Rc7 {[%clk 0:00:03]}  Ra4 {[%clk 0:00:10]} 44. Rxh7 {[%clk 0:00:03]}  Kg6 {[%clk 0:00:06]} 45. Rc7 {[%clk 0:00:03]}  Rb4 {[%clk 0:00:06]} 46. Rc6+ {[%clk 0:00:03]}  Kg5 {[%clk 0:00:06]} 47. Rd6 {[%clk 0:00:03]}  Rc4 {[%clk 0:00:06]} 48. Rd8 {[%clk 0:00:03]}  Rb4 {[%clk 0:00:06]} 49. Rg8+ {[%clk 0:00:03]}  Kf6 {[%clk 0:00:07]} 50. Rf8+ {[%clk 0:00:03]}  Kg6 {[%clk 0:00:06]} 51. Rg8+ {[%clk 0:00:04]}  Kf7 {[%clk 0:00:07]} 52. Rc8 {[%clk 0:00:04]}  Kf6 {[%clk 0:00:07]} 53. Rd8 {[%clk 0:00:03]}  Kg5 {[%clk 0:00:07]} 54. Rd4 {[%clk 0:00:04]}  Rb5 {[%clk 0:00:07]} 55. Ra4 {[%clk 0:00:03]}  Rc5 {[%clk 0:00:07]} 56. Ra6 {[%clk 0:00:03]}  Rb5 {[%clk 0:00:07]} 57. Ra8 {[%clk 0:00:03]}  Rb1 {[%clk 0:00:07]} 58. Rg8+ {[%clk 0:00:03]}  Kf6 {[%clk 0:00:07]} 59. Rf8+ {[%clk 0:00:02]}  Kg6 {[%clk 0:00:08]} 60. Rg8+ {[%clk 0:00:02]}  Kf7 {[%clk 0:00:08]} 61. Rd8 {[%clk 0:00:02]}  Rf1+ {[%clk 0:00:08]} 62. Kg2 {[%clk 0:00:03]}  Ra1 {[%clk 0:00:09]} 63. Kf2 {[%clk 0:00:03]}  Ke7 {[%clk 0:00:09]} 64. Rd4 {[%clk 0:00:03]}  Ke6 {[%clk 0:00:10]} 65. Rf4 {[%clk 0:00:03]}  Ke5 {[%clk 0:00:09]} 66. g4 {[%clk 0:00:03]}  Ra2+ {[%clk 0:00:09]} 67. Kf3 {[%clk 0:00:03]}  fxg4+ {[%clk 0:00:09]} 68. Rxg4 {[%clk 0:00:03]}  Ra3 {[%clk 0:00:08]} 69. Rg5+ {[%clk 0:00:03]}  Ke6 {[%clk 0:00:09]} 70. Rb5 {[%clk 0:00:04]}  Ke7 {[%clk 0:00:09]} 71. Kf4 {[%clk 0:00:03]}  Ke8 {[%clk 0:00:09]} 72. e4 {[%clk 0:00:03]}  Rh3 {[%clk 0:00:09]} 73. Ke5 {[%clk 0:00:02]}  Rh5+ {[%clk 0:00:09]} 74. Kd4 {[%clk 0:00:02]}  Rxb5 {[%clk 0:00:10]} 0-1


[Site "https://www.chess.com"]

[Event "Titled Tuesday Blitz April 4 Early 2023"]
[White "Hartikainen, Jarmo"]
[Black "Sakun, Volodymyr"]
[WhiteFideId "503134"]
[BlackFideId "14114062"]
[WhiteElo "2071"]
[BlackElo "2318"]
[Result "0-1"]
[Round "07"]
[TimeControl "180+2"]
[Date "2023.04.04"]
[WhiteClock "0:00:01"]
[BlackClock "0:00:39"]

1. e4 {[%clk 0:03:00]}  d6 {[%clk 0:02:59]} 2. d4 {[%clk 0:03:00]}  g6 {[%clk 0:03:00]} 3. Nc3 {[%clk 0:02:59]}  Bg7 {[%clk 0:03:00]} 4. Be3 {[%clk 0:02:59]}  a6 {[%clk 0:03:01]} 5. a4 {[%clk 0:02:58]}  Nd7 {[%clk 0:02:59]} 6. Be2 {[%clk 0:02:57]}  e6 {[%clk 0:02:58]} 7. g4 {[%clk 0:02:57]}  e5 {[%clk 0:02:56]} 8. d5 {[%clk 0:02:55]}  Bh6 {[%clk 0:02:50]} 9. Qd2 {[%clk 0:02:46]}  Bxe3 {[%clk 0:02:47]} 10. Qxe3 {[%clk 0:02:47]}  Qf6 {[%clk 0:02:44]} 11. Nh3 {[%clk 0:02:13]}  Qh4 {[%clk 0:02:40]} 12. Qg3 {[%clk 0:01:27]}  Qh6 {[%clk 0:02:18]} 13. g5 {[%clk 0:01:22]}  Qg7 {[%clk 0:02:18]} 14. O-O-O {[%clk 0:01:21]}  h6 {[%clk 0:02:18]} 15. f4 {[%clk 0:01:03]}  exf4 {[%clk 0:02:16]} 16. Nxf4 {[%clk 0:00:57]}  hxg5 {[%clk 0:02:15]} 17. Qxg5 {[%clk 0:00:54]}  Qh6 {[%clk 0:02:12]} 18. Qxh6 {[%clk 0:00:51]}  Rxh6 {[%clk 0:02:13]} 19. h4 {[%clk 0:00:50]}  Ngf6 {[%clk 0:02:12]} 20. Rdg1 {[%clk 0:00:32]}  Ne5 {[%clk 0:01:57]} 21. h5 {[%clk 0:00:32]}  Kf8 {[%clk 0:01:30]} 22. hxg6 {[%clk 0:00:32]}  Rxh1 {[%clk 0:01:29]} 23. g7+ {[%clk 0:00:32]}  Kg8 {[%clk 0:01:28]} 24. Rxh1 {[%clk 0:00:33]}  Kxg7 {[%clk 0:01:28]} 25. Nh5+ {[%clk 0:00:33]}  Nxh5 {[%clk 0:01:28]} 26. Rxh5 {[%clk 0:00:33]}  Bd7 {[%clk 0:01:28]} 27. Rh4 {[%clk 0:00:24]}  Kf6 {[%clk 0:01:27]} 28. b3 {[%clk 0:00:18]}  Rg8 {[%clk 0:01:26]} 29. Kb2 {[%clk 0:00:19]}  Rg2 {[%clk 0:01:22]} 30. Bh5 {[%clk 0:00:18]}  Kg5 {[%clk 0:01:10]} 31. Rh1 {[%clk 0:00:17]}  f5 {[%clk 0:01:10]} 32. exf5 {[%clk 0:00:15]}  Bxf5 {[%clk 0:01:11]} 33. Bd1 {[%clk 0:00:15]}  Nd3+ {[%clk 0:01:09]} 34. Kb1 {[%clk 0:00:14]}  Nf2 {[%clk 0:01:09]} 35. Rf1 {[%clk 0:00:13]}  Nxd1 {[%clk 0:01:09]} 36. Nxd1 {[%clk 0:00:13]}  Bxc2+ {[%clk 0:01:08]} 37. Kc1 {[%clk 0:00:13]}  Bxb3 {[%clk 0:01:05]} 38. Rf8 {[%clk 0:00:13]}  Rc2+ {[%clk 0:00:53]} 39. Kb1 {[%clk 0:00:12]}  Rd2 {[%clk 0:00:50]} 40. Rg8+ {[%clk 0:00:11]}  Kf4 {[%clk 0:00:50]} 41. Nc3 {[%clk 0:00:10]}  Bxd5 {[%clk 0:00:47]} 42. Rg7 {[%clk 0:00:08]}  Bc6 {[%clk 0:00:45]} 43. Rxc7 {[%clk 0:00:07]}  d5 {[%clk 0:00:44]} 44. Rc8 {[%clk 0:00:06]}  d4 {[%clk 0:00:44]} 45. Rf8+ {[%clk 0:00:02]}  Ke3 {[%clk 0:00:44]} 46. Re8+ {[%clk 0:00:01]}  Kd3 {[%clk 0:00:39]} 0-1


[Site "https://www.chess.com"]

[Event "Titled Tuesday Blitz April 4 Early 2023"]
[White "Itkis, Boris"]
[Black "Vaglio Munoz, Jaime"]
[WhiteFideId "1209167"]
[BlackFideId "6500145"]
[WhiteElo "2216"]
[BlackElo "2199"]
[Result "0-1"]
[Round "07"]
[TimeControl "180+2"]
[Date "2023.04.04"]
[WhiteClock "0:00:01"]
[BlackClock "0:00:09"]

1. d4 {[%clk 0:02:56]}  c6 {[%clk 0:02:57]} 2. c4 {[%clk 0:02:56]}  b5 {[%clk 0:02:57]} 3. e4 {[%clk 0:02:53]}  bxc4 {[%clk 0:02:57]} 4. Bxc4 {[%clk 0:02:54]}  d6 {[%clk 0:02:57]} 5. Nf3 {[%clk 0:02:54]}  g6 {[%clk 0:02:56]} 6. O-O {[%clk 0:02:49]}  Bg7 {[%clk 0:02:54]} 7. Nc3 {[%clk 0:02:49]}  Bg4 {[%clk 0:02:49]} 8. h3 {[%clk 0:02:47]}  Bxf3 {[%clk 0:02:49]} 9. Qxf3 {[%clk 0:02:48]}  e6 {[%clk 0:02:46]} 10. Re1 {[%clk 0:02:03]}  Ne7 {[%clk 0:02:44]} 11. d5 {[%clk 0:01:58]}  cxd5 {[%clk 0:02:38]} 12. exd5 {[%clk 0:01:59]}  e5 {[%clk 0:02:38]} 13. Bb5+ {[%clk 0:01:53]}  Nd7 {[%clk 0:02:36]} 14. Ne4 {[%clk 0:01:41]}  O-O {[%clk 0:02:14]} 15. Nxd6 {[%clk 0:01:39]}  Nb6 {[%clk 0:02:08]} 16. Nc4 {[%clk 0:01:23]}  Nexd5 {[%clk 0:01:54]} 17. Nxe5 {[%clk 0:01:21]}  Qc7 {[%clk 0:01:24]} 18. Ng4 {[%clk 0:00:32]}  a6 {[%clk 0:01:21]} 19. Bf1 {[%clk 0:00:28]}  Nb4 {[%clk 0:01:16]} 20. Bh6 {[%clk 0:00:23]}  Qc6 {[%clk 0:00:46]} 21. Bxg7 {[%clk 0:00:18]}  Qxf3 {[%clk 0:00:46]} 22. gxf3 {[%clk 0:00:16]}  Kxg7 {[%clk 0:00:46]} 23. Rac1 {[%clk 0:00:16]}  Nxa2 {[%clk 0:00:45]} 24. Rc6 {[%clk 0:00:15]}  Nd5 {[%clk 0:00:37]} 25. Rxa6 {[%clk 0:00:11]}  Nab4 {[%clk 0:00:35]} 26. Rxa8 {[%clk 0:00:10]}  Rxa8 {[%clk 0:00:36]} 27. Bc4 {[%clk 0:00:10]}  h5 {[%clk 0:00:31]} 28. Ne3 {[%clk 0:00:10]}  Re8 {[%clk 0:00:28]} 29. Rd1 {[%clk 0:00:05]}  Nf4 {[%clk 0:00:27]} 30. Kh2 {[%clk 0:00:03]}  Re7 {[%clk 0:00:25]} 31. Rd4 {[%clk 0:00:02]}  Ne6 {[%clk 0:00:20]} 32. Bxe6 {[%clk 0:00:03]}  Nc6 {[%clk 0:00:19]} 33. Rc4 {[%clk 0:00:02]}  Rxe6 {[%clk 0:00:19]} 34. b4 {[%clk 0:00:02]}  Ne5 {[%clk 0:00:18]} 35. Rf4 {[%clk 0:00:01]}  Nd3 {[%clk 0:00:16]} 36. Rd4 {[%clk 0:00:01]}  Ne5 {[%clk 0:00:13]} 37. Rf4 {[%clk 0:00:01]}  Rb6 {[%clk 0:00:12]} 38. Kg2 {[%clk 0:00:01]}  Nd3 {[%clk 0:00:11]} 39. Rd4 {[%clk 0:00:01]}  Nxb4 {[%clk 0:00:10]} 40. Nd5 {[%clk 0:00:01]}  Rd6 {[%clk 0:00:09]} 0-1


[Site "https://www.chess.com"]

[Event "Titled Tuesday Blitz April 4 Early 2023"]
[White "morozcoma"]
[Black "Reefat, Bin-Sattar"]
[BlackFideId "10200207"]
[WhiteElo "2268"]
[BlackElo "2462"]
[Result "1-0"]
[Round "07"]
[TimeControl "180+2"]
[Date "2023.04.04"]
[WhiteClock "0:00:11"]
[BlackClock "0:00:29"]

1. e4 {[%clk 0:03:00]}  e6 {[%clk 0:02:46]} 2. d4 {[%clk 0:03:00]}  d5 {[%clk 0:02:45]} 3. Nc3 {[%clk 0:03:01]}  Nf6 {[%clk 0:02:45]} 4. e5 {[%clk 0:03:01]}  Nfd7 {[%clk 0:02:44]} 5. Nf3 {[%clk 0:03:02]}  c5 {[%clk 0:02:45]} 6. Bg5 {[%clk 0:03:02]}  Nc6 {[%clk 0:02:46]} 7. Bxd8 {[%clk 0:03:02]}  Nxd8 {[%clk 0:02:45]} 8. dxc5 {[%clk 0:03:01]}  Bxc5 {[%clk 0:02:44]} 9. Bd3 {[%clk 0:03:00]}  Nc6 {[%clk 0:02:43]} 10. O-O {[%clk 0:03:00]}  Ncxe5 {[%clk 0:02:43]} 11. Nxe5 {[%clk 0:03:00]}  Nxe5 {[%clk 0:02:44]} 12. Re1 {[%clk 0:03:00]}  Nxd3 {[%clk 0:02:43]} 13. Qxd3 {[%clk 0:02:59]}  O-O {[%clk 0:02:43]} 14. Rad1 {[%clk 0:02:57]}  a6 {[%clk 0:02:42]} 15. Re5 {[%clk 0:02:56]}  Bd6 {[%clk 0:02:40]} 16. Rh5 {[%clk 0:02:56]}  h6 {[%clk 0:02:39]} 17. Ne4 {[%clk 0:02:52]}  Be7 {[%clk 0:02:38]} 18. Ng3 {[%clk 0:02:49]}  Bd7 {[%clk 0:02:36]} 19. Ne2 {[%clk 0:02:31]}  Rac8 {[%clk 0:02:32]} 20. Nd4 {[%clk 0:02:25]}  Bf6 {[%clk 0:02:28]} 21. f4 {[%clk 0:02:25]}  Rc4 {[%clk 0:02:25]} 22. c3 {[%clk 0:02:24]}  Rfc8 {[%clk 0:02:23]} 23. Nf3 {[%clk 0:02:19]}  Rxf4 {[%clk 0:02:22]} 24. Nd4 {[%clk 0:02:14]}  Re4 {[%clk 0:02:09]} 25. Rf1 {[%clk 0:01:59]}  e5 {[%clk 0:02:05]} 26. Nf5 {[%clk 0:01:58]}  Rf4 {[%clk 0:01:39]} 27. Rxf4 {[%clk 0:01:52]}  exf4 {[%clk 0:01:39]} 28. Qxd5 {[%clk 0:01:44]}  Be6 {[%clk 0:01:39]} 29. Qe4 {[%clk 0:01:30]}  g6 {[%clk 0:01:27]} 30. Nd6 {[%clk 0:01:18]}  Rd8 {[%clk 0:01:25]} 31. Rxh6 {[%clk 0:00:57]}  Rxd6 {[%clk 0:01:23]} 32. Qxf4 {[%clk 0:00:57]}  Rd1+ {[%clk 0:01:22]} 33. Kf2 {[%clk 0:00:56]}  Kg7 {[%clk 0:01:06]} 34. g4 {[%clk 0:00:43]}  Rd5 {[%clk 0:00:58]} 35. h4 {[%clk 0:00:33]}  Bxg4 {[%clk 0:00:53]} 36. Rxg6+ {[%clk 0:00:15]}  fxg6 {[%clk 0:00:50]} 37. Qxg4 {[%clk 0:00:15]}  Rd2+ {[%clk 0:00:50]} 38. Ke3 {[%clk 0:00:15]}  Rh2 {[%clk 0:00:48]} 39. Qd7+ {[%clk 0:00:15]}  Kh6 {[%clk 0:00:47]} 40. Qxb7 {[%clk 0:00:15]}  Bxh4 {[%clk 0:00:46]} 41. Qxa6 {[%clk 0:00:15]}  Rxb2 {[%clk 0:00:45]} 42. c4 {[%clk 0:00:15]}  Rc2 {[%clk 0:00:41]} 43. Qa4 {[%clk 0:00:14]}  Rc3+ {[%clk 0:00:39]} 44. Kf4 {[%clk 0:00:13]}  Bg5+ {[%clk 0:00:38]} 45. Kg4 {[%clk 0:00:13]}  Be7 {[%clk 0:00:34]} 46. Qc6 {[%clk 0:00:12]}  Ra3 {[%clk 0:00:30]} 47. Qc8 {[%clk 0:00:12]}  Bd6 {[%clk 0:00:29]} 48. Qh8# {[%clk 0:00:11]} 1-0


[Site "https://www.chess.com"]